bitfinex-derivatives/quotes_SOLF0:USTF0_20241226
["timestamp","ask_amount","ask_price","bid_price","bid_amount"]
[1735172563850,2.5204,198.53,198.47,9.32163506]
[1735172564957,2.5204,198.53,198.47,2.521]
[1735172565546,2.5205,198.53,198.46,2.5212]
[1735172565752,12.50019152,198.56,198.43,10.89919152]
[1735172566347,2.5206,198.52,198.43,10.89919152]
[1735172566654,12.50019152,198.56,198.43,10.89919152]
[1735172566948,2.5205,198.52,198.47,2.5211]
[1735172567154,2.5205,198.52,198.43,10.89919152]
[1735172568549,2.5205,198.52,198.46,2.5212]
[1735172570452,12.50019152,198.56,198.47,2.5211]
[1735172570453,2.5204,198.53,198.47,2.5211]
[1735172570650,2.5204,198.53,198.43,10.89919152]
[1735172571351,2.5205,198.52,198.46,2.5211]
[1735172571654,12.50019152,198.56,198.43,10.89919152]
[1735172571950,2.5207,198.51,198.44,2.5214]
[1735172572156,3.2,198.51,198.39,10.89919152]
[1735172572554,5.7207,198.51,198.39,10.89919152]
[1735172572750,5.7207,198.51,198.42,10.89919152]
[1735172573961,2.5207,198.51,198.42,10.89919152]
[1735172574558,2.5207,198.51,198.45,2.5213]
[1735172575655,12.50019152,198.56,198.42,10.89919152]
[1735172575856,2.5205,198.53,198.47,2.521]
[1735172577258,3.2,198.55,198.45,2.5213]
[1735172577560,3.2,198.55,198.41,3.2]
[1735172579455,2.5207,198.51,198.45,2.5213]
[1735172579852,3.2,198.55,198.45,2.5213]
[1735172581269,2.5208,198.5,198.45,2.5213]
[1735172581669,2.5208,198.5,198.46,2.5212]
[1735172584263,3.2,198.55,198.41,10.89919152]
[1735172584466,10.89919152,198.5,198.38,4.8535]
[1735172584673,3.12,198.49,198.38,4.8535]
[1735172584868,2.5216,198.44,198.39,2.522]
[1735172585065,6.3341,198.49,198.39,2.522]
[1735172585373,10.89919152,198.47,198.39,2.522]
[1735172586067,10.89919152,198.47,198.34,3.12]
[1735172586068,2.5217,198.43,198.38,2.5222]
[1735172586273,9.55132151,198.43,198.38,2.5222]
[1735172587072,6.3341,198.49,198.39,7.02962151]
[1735172587271,3.12,198.51,198.43,7.02962151]
[1735172587472,7.02962151,198.52,198.43,7.02962151]
[1735172587969,2.5208,198.5,198.44,7.02962151]
[1735172588166,2.5208,198.5,198.41,12.61950034]
[1735172589362,2.5209,198.49,198.44,2.5214]
[1735172589571,2.5209,198.49,198.41,12.61950034]
[1735172589765,2.5209,198.49,198.43,2.5215]
[1735172589971,2.5209,198.49,198.41,15.75320034]
[1735172590571,3.12,198.54,198.41,4.7787]
[1735172591375,2.5211,198.47,198.42,2.5217]
[1735172593980,2.5211,198.47,198.41,4.7787]
[1735172593981,10.97450034,198.52,198.41,4.7787]
[1735172594176,10.97450034,198.52,198.41,7.3005]
[1735172594977,2.5213,198.46,198.41,7.3005]
[1735172595182,14.09450034,198.52,198.41,4.7787]
[1735172595481,2.5206,198.51,198.42,10.97450034]
[1735172595787,17.28750034,198.55,198.45,2.5213]
[1735172595978,14.16750034,198.55,198.45,2.5213]
[1735172596181,17.28750034,198.55,198.45,2.5213]
[1735172596578,2.5207,198.5,198.45,2.5213]
[1735172597582,14.16750034,198.55,198.46,2.5212]
[1735172597583,2.5206,198.51,198.46,2.5212]
[1735172598283,2.5207,198.5,198.46,2.5212]
[1735172598780,2.5206,198.51,198.46,2.5212]
[1735172600477,1.601,198.56,198.46,3.12]
[1735172600785,3.2286,198.6,198.48,10.97450034]
[1735172601181,3.2286,198.6,198.49,1.5812]
[1735172601487,3.2286,198.6,198.52,2.5204]
[1735172602587,10.97450034,198.61,198.52,2.5204]
[1735172603580,10.97450034,198.61,198.51,2.5206]
[1735172603780,10.97450034,198.61,198.49,4.6876]
[1735172604091,10.97450034,198.58,198.46,30.32254024]
[1735172604486,10.97450034,198.58,198.47,2.5211]
[1735172604791,10.97450034,198.58,198.46,27.20254024]
[1735172604988,10.97450034,198.55,198.46,27.20254024]
[1735172605291,4.7013,198.54,198.42,6.80063506]
[1735172605886,2.5214,198.45,198.42,6.80063506]
[1735172606188,10.97450034,198.52,198.42,6.80063506]
[1735172606388,10.97450034,198.52,198.38,27.20254024]
[1735172606585,2.5215,198.45,198.39,2.5221]
[1735172607793,3.1,198.48,198.35,17.7751354]
[1735172607993,10.97450034,198.46,198.35,6.80063506]
[1735172608693,12.49090034,198.46,198.34,6.80063506]
[1735172609485,2.522,198.4,198.34,9.32333506]
[1735172609689,14.07450034,198.42,198.34,6.80063506]
[1735172610194,2.5226,198.35,198.34,6.80063506]
[1735172610393,2.5226,198.35,198.3,2.5232]
[1735172610892,2.5226,198.35,198.28,27.20254024]
[1735172611788,14.07450034,198.42,198.28,27.20254024]
[1735172611989,3.1,198.44,198.24,7.7269]
[1735172612184,3.1,198.44,198.31,10.97450034]
[1735172612384,5.6216,198.44,198.36,2.5225]
[1735172612587,1.5164,198.46,198.34,10.97450034]
[1735172612993,2.5214,198.45,198.38,2.5221]
[1735172614397,2.5215,198.44,198.38,2.5221]
[1735172615998,1.5164,198.46,198.36,2.5224]
[1735172616491,1.5164,198.46,198.35,3.2385]
[1735172617994,4.0377,198.46,198.38,2.5222]
[1735172618186,1.5164,198.46,198.35,3.2385]
[1735172619196,2.5215,198.44,198.39,2.522]
[1735172619491,1.5164,198.46,198.35,3.2385]
[1735172620195,2.5216,198.43,198.36,2.5224]
[1735172620393,1.5164,198.46,198.36,2.5224]
[1735172620394,10.97450034,198.45,198.36,2.5224]
[1735172621496,2.5218,198.42,198.36,2.5224]
[1735172622698,1.5164,198.46,198.34,10.97450034]
[1735172623487,2.5216,198.43,198.38,2.5221]
[1735172624290,2.5215,198.44,198.34,10.97450034]
[1735172624594,2.5215,198.44,198.39,2.5221]
[1735172625096,2.5215,198.44,198.38,2.5222]
[1735172626198,1.5164,198.46,198.34,10.97450034]
[1735172626397,1.5164,198.46,198.36,2.5224]
[1735172626697,1.5164,198.46,198.32,4.756]
[1735172626892,10.97450034,198.42,198.3,3.2581]
[1735172627097,3.1,198.41,198.29,27.20254024]
[1735172627299,10.97450034,198.39,198.29,27.20254024]
[1735172628301,10.97450034,198.39,198.3,2.5232]
[1735172628495,10.97450034,198.39,198.26,1.5696]
[1735172628801,10.97450034,198.36,198.26,2.5238]
[1735172629003,3.1,198.35,198.26,2.5238]
[1735172629400,10.97450034,198.36,198.26,2.5238]
[1735172629693,3.1,198.35,198.26,2.5238]
[1735172630096,3.1,198.35,198.22,12.56430034]
[1735172630698,3.1,198.35,198.25,2.5239]
[1735172630894,3.1,198.35,198.22,1.5898]
[1735172631292,2.5233,198.3,198.24,2.524]
[1735172631498,3.1,198.35,198.22,1.5898]
[1735172632600,3.1,198.34,198.22,1.5898]
[1735172632995,2.5232,198.31,198.26,2.5238]
[1735172633396,3.1,198.34,198.22,1.5898]
[1735172633701,2.5234,198.3,198.25,2.5239]
[1735172634200,3.1,198.34,198.25,2.5239]
[1735172634591,10.97450034,198.33,198.21,2.5243]
[1735172634799,10.97450034,198.33,198.12,6.80063506]
[1735172635102,10.97450034,198.27,198.13,10.97450034]
[1735172635299,2.5242,198.23,198.13,10.97450034]
[1735172635902,2.5242,198.23,198.17,2.5248]
[1735172636397,4.6463,198.26,198.15,2.5251]
[1735172636703,7.6982,198.26,198.15,2.5251]
[1735172636904,2.5244,198.22,198.15,2.5251]
[1735172637207,7.6982,198.26,198.15,2.5251]
[1735172637998,2.5244,198.22,198.15,2.5251]
[1735172638193,7.6982,198.26,198.15,2.5251]
[1735172638703,2.5244,198.22,198.16,2.525]
[1735172639005,7.6982,198.26,198.16,2.525]
[1735172640405,2.5244,198.21,198.16,2.525]
[1735172641703,7.6982,198.26,198.12,10.97450034]
[1735172642703,7.6982,198.26,198.09,4.7905]
[1735172643007,7.6982,198.26,198.11,10.97450034]
[1735172643205,2.5245,198.21,198.15,2.5251]
[1735172643402,3.078,198.26,198.14,10.97450034]
[1735172643702,3.14,198.3,198.17,10.97450034]
[1735172643903,3.14,198.3,198.23,2.5241]
[1735172644808,3.14,198.3,198.18,1.5637]
[1735172645401,2.5237,198.27,198.21,2.5244]
[1735172645809,3.14,198.3,198.18,1.5637]
[1735172646107,2.5232,198.31,198.2,10.97450034]
[1735172646303,4.8961,198.35,198.21,3.14]
[1735172646507,4.8961,198.35,198.23,10.97450034]
[1735172646901,4.8961,198.35,198.21,3.14]
[1735172647211,2.5235,198.29,198.21,3.14]
[1735172648405,2.5235,198.29,198.23,2.5241]
[1735172653408,2.5235,198.29,198.19,10.97450034]
[1735172653606,2.5235,198.29,198.24,2.524]
[1735172654003,95.37310146,198.49,198.19,10.97450034]
[1735172654220,6.3418,198.47,198.28,10.97450034]
[1735172654409,10.97450034,198.43,198.28,10.97450034]
[1735172654610,10.97450034,198.43,198.29,1.5456]
[1735172655006,2.5222,198.39,198.29,1.5456]
[1735172655204,3.14,198.41,198.29,1.5456]
[1735172655402,2.5217,198.43,198.37,2.5224]
[1735172655705,3.14,198.45,198.31,10.97450034]
[1735172656203,3.14,198.45,198.34,10.97450034]
[1735172656806,2.5215,198.44,198.39,2.5221]
[1735172657214,1.6683,198.47,198.34,10.97450034]
[1735172657410,3.14,198.49,198.37,10.97450034]
[1735172657602,3.14,198.49,198.38,1.6277]
[1735172657807,3.14,198.49,198.38,3.1318]
[1735172658002,3.14,198.5,198.38,3.1318]
[1735172658502,2.5211,198.48,198.38,3.1318]
[1735172659006,2.5211,198.48,198.42,2.5217]
[1735172659210,3.14,198.51,198.38,3.1318]
[1735172659407,10.97450034,198.5,198.38,3.1318]
[1735172659913,2.5215,198.44,198.38,3.1318]
[1735172660814,2.5215,198.44,198.38,4.0263]
[1735172661215,3.14,198.44,198.31,10.97450034]
[1735172661717,14.11450034,198.44,198.31,10.97450034]
[1735172661914,2.5221,198.39,198.34,2.5227]
[1735172662112,2.5221,198.39,198.31,10.97450034]
[1735172662415,14.11450034,198.44,198.3,1.6476]
[1735172662614,3.1159,198.43,198.28,10.97450034]
[1735172663016,2.5222,198.39,198.33,2.5228]
[1735172664211,3.1159,198.43,198.31,10.97450034]
[1735172665417,2.5219,198.41,198.35,2.5225]
[1735172666420,1.5497,198.43,198.34,10.97450034]
[1735172666607,2.5215,198.44,198.38,2.5222]
[1735172666813,3.14,198.46,198.34,10.97450034]
[1735172667016,10.97450034,198.5,198.34,12.59950034]
[1735172667218,3.14,198.49,198.37,10.97450034]
[1735172667414,1.5336,198.51,198.41,2.5219]
[1735172667610,1.5336,198.51,198.38,3.14]
[1735172667819,4.6736,198.51,198.4,10.97450034]
[1735172668015,2.5208,198.5,198.44,2.5215]
[1735172668518,2.5209,198.49,198.44,2.5215]
[1735172668718,1.5336,198.51,198.4,10.97450034]
[1735172669916,2.521,198.48,198.42,2.5217]
[1735172670517,2.521,198.48,198.43,2.5216]
[1735172670718,2.5209,198.49,198.43,2.5216]
[1735172671021,2.04776589,198.53,198.43,10.97450034]
[1735172672118,4.56816589,198.53,198.47,2.521]
[1735172672713,2.5202,198.55,198.43,10.97450034]
[1735172672920,2.5202,198.55,198.46,10.97450034]
[1735172673413,3.0885,198.57,198.46,10.97450034]
[1735172674223,2.5205,198.52,198.46,2.5212]
[1735172674422,10.97450034,198.56,198.45,1.634]
[1735172675122,2.5205,198.52,198.46,2.5212]
[1735172675319,2.5205,198.52,198.45,1.634]
[1735172676522,2.5205,198.52,198.47,2.5211]
[1735172679623,3.14,198.55,198.45,1.634]
[1735172680623,2.5206,198.52,198.46,2.5211]
[1735172680823,2.5206,198.52,198.45,1.634]
[1735172681623,3.14,198.55,198.45,1.634]
[1735172682231,2.5205,198.52,198.48,2.521]
[1735172682629,3.14,198.55,198.45,1.634]
[1735172683129,2.5205,198.53,198.48,2.521]
[1735172683727,48.77083346,198.58,198.45,1.634]
[1735172683922,2.5201,198.55,198.45,1.634]
[1735172684119,3.14,198.57,198.45,1.634]
[1735172685022,48.77083346,198.58,198.45,1.634]
[1735172685329,2.5199,198.57,198.52,2.5204]
[1735172687632,2.5199,198.57,198.46,14.11450034]
[1735172687831,14.21370034,198.62,198.49,10.97450034]
[1735172688132,2.5197,198.58,198.49,10.97450034]
[1735172688324,14.21370034,198.62,198.49,10.97450034]
[1735172688530,2.5193,198.61,198.52,10.97450034]
[1735172688933,2.5193,198.61,198.55,2.52]
[1735172689833,2.5193,198.61,198.52,10.97450034]
[1735172690030,5.7584,198.62,198.52,10.97450034]
[1735172690229,3.2392,198.62,198.52,10.97450034]
[1735172691030,2.5194,198.61,198.55,2.5201]
[1735172692632,2.5194,198.61,198.52,10.97450034]
[1735172692933,2.5194,198.61,198.56,2.5199]
[1735172693133,2.5193,198.62,198.52,10.97450034]
[1735172693324,14.11450034,198.65,198.58,2.5197]
[1735172693528,14.11450034,198.65,198.52,10.97450034]
[1735172693737,2.5193,198.62,198.52,10.97450034]
[1735172694134,14.11450034,198.65,198.56,2.5199]
[1735172694527,2.5192,198.63,198.56,2.5199]
[1735172694731,3.14,198.65,198.56,2.5199]
[1735172695134,2.5193,198.62,198.57,2.5198]
[1735172696131,2.519,198.64,198.6,2.5194]
[1735172696337,4.6826,198.67,198.55,10.97450034]
[1735172696833,2.5188,198.65,198.55,10.97450034]
[1735172697039,3.158,198.67,198.58,10.97450034]
[1735172697230,3.14,198.7,198.58,14.11450034]
[1735172697428,2.5182,198.7,198.64,2.5188]
[1735172697633,2.5182,198.7,198.58,14.11450034]
[1735172698040,2.5182,198.7,198.64,2.5189]
[1735172701830,2.5181,198.72,198.61,10.97450034]
[1735172702034,4.76,198.75,198.64,10.97450034]
[1735172702238,4.76,198.75,198.65,3.1]
[1735172703240,2.5178,198.74,198.69,2.5183]
[1735172703833,10.97450034,198.83,198.67,10.97450034]
[1735172704037,3.1,198.82,198.7,10.97450034]
[1735172704371,2.517,198.8,198.72,2.5178]
[1735172704551,3.1,198.81,198.72,2.5178]
[1735172704758,10.97450034,198.83,198.72,2.5178]
[1735172704964,2.5173,198.78,198.72,2.5178]
[1735172705461,15.56260034,198.86,198.7,10.97450034]
[1735172705672,7.6881,198.86,198.73,10.97450034]
[1735172705871,7.6881,198.86,198.73,14.07450034]
[1735172706068,7.6881,198.86,198.78,2.5171]
[1735172706665,4.5881,198.86,198.78,2.5171]
[1735172707565,2.5165,198.84,198.78,2.5171]
[1735172707767,76.20442728,198.94,198.82,10.97450034]
[1735172707962,3.0174,198.97,198.83,3.1]
[1735172708167,2.5155,198.91,198.83,3.1]
[1735172708552,3.0174,198.97,198.85,10.97450034]
[1735172708759,2.5155,198.92,198.85,13.49070034]
[1735172709153,2.5156,198.91,198.85,13.49070034]
[1735172709454,10.97450034,198.95,198.83,3.1]
[1735172709858,2.516,198.88,198.8,2.5169]
[1735172710549,3.1,198.92,198.79,10.97450034]
[1735172710856,2.5163,198.85,198.79,10.97450034]
[1735172711056,1.5423,198.91,198.79,10.97450034]
[1735172711253,1.5423,198.91,198.79,13.49150034]
[1735172711755,1.5423,198.91,198.79,10.97450034]
[1735172712293,1.5423,198.91,198.77,3.1]
[1735172712683,1.5423,198.91,198.76,10.97450034]
[1735172712869,1.5423,198.91,198.77,3.1]
[1735172714562,1.5423,198.91,198.8,2.5169]
[1735172714769,1.5423,198.91,198.77,3.1]
[1735172714961,2.516,198.87,198.8,2.5168]
[1735172715575,1.5423,198.91,198.79,10.97450034]
[1735172715960,1.5423,198.91,198.76,10.97450034]
[1735172716164,2.517,198.8,198.74,5.6176]
[1735172716359,3.1,198.85,198.74,3.1]
[1735172716908,2.517,198.8,198.74,3.1]
[1735172716981,2.517,198.8,198.73,13.49230034]
[1735172717185,2.517,198.8,198.73,10.97450034]
[1735172717376,2.5171,198.79,198.73,13.49230034]
[1735172718176,2.5172,198.78,198.73,10.97450034]
[1735172718680,3.1,198.85,198.73,10.97450034]
[1735172719286,3.1,198.85,198.76,10.97450034]
[1735172719479,3.1,198.85,198.73,10.97450034]
[1735172719682,3.1,198.85,198.7,10.97450034]
[1735172719886,2.5169,198.81,198.71,2.5181]
[1735172720078,3.1,198.85,198.71,2.5181]
[1735172720283,3.1,198.85,198.7,14.07450034]
[1735172720681,2.5171,198.79,198.72,2.5178]
[1735172720876,3.1,198.85,198.72,2.5178]
[1735172721075,2.5172,198.79,198.72,2.5178]
[1735172721587,2.5172,198.79,198.73,2.5178]
[1735172721881,3.1,198.85,198.7,14.07450034]
[1735172722190,10.97450034,198.83,198.67,15.61190034]
[1735172722386,1.5181,198.82,198.67,15.61190034]
[1735172722688,2.5179,198.73,198.68,2.5183]
[1735172724865,2.5179,198.73,198.67,13.49310034]
[1735172726068,10.97450034,198.77,198.52,54.40508048]
[1735172726364,10.97450034,198.74,198.58,10.97450034]
[1735172726568,3.1,198.76,198.58,10.97450034]
[1735172726569,10.97450034,198.71,198.58,10.97450034]
[1735172726768,6.2447,198.7,198.58,10.97450034]
[1735172726965,6.2447,198.7,198.56,5.7263]
[1735172727469,6.2447,198.7,198.55,17.7751354]
[1735172727671,10.97450034,198.68,198.55,17.7751354]
[1735172727969,2.5195,198.6,198.55,10.97450034]
[1735172728467,10.97450034,198.68,198.55,10.97450034]
[1735172728668,2.5196,198.59,198.55,10.97450034]
[1735172728866,10.97450034,198.68,198.55,10.97450034]
[1735172729868,2.5192,198.63,198.57,2.5198]
[1735172731967,2.5189,198.65,198.59,2.5195]
[1735172732370,3.1447,198.7,198.58,10.97450034]
[1735172732672,2.5184,198.69,198.61,10.97450034]
[1735172733058,1.658,198.73,198.61,10.97450034]
[1735172733272,2.5182,198.71,198.65,2.5188]
[1735172733570,2.5182,198.71,198.61,10.97450034]
[1735172733770,2.5184,198.69,198.63,2.519]
[1735172733961,2.5184,198.69,198.6,3.14]
[1735172733962,1.658,198.73,198.6,3.14]
[1735172734166,3.1291,198.72,198.6,3.14]
[1735172734868,2.5186,198.68,198.61,2.5193]
[1735172735265,6.2691,198.72,198.6,3.14]
[1735172735571,6.2691,198.72,198.62,10.97450034]
[1735172735767,3.14,198.72,198.62,10.97450034]
[1735172736170,1.658,198.73,198.62,10.97450034]
[1735172736365,1.658,198.73,198.6,3.14]
[1735172736366,2.518,198.72,198.66,2.5186]
[1735172736667,3.1291,198.82,198.65,10.97450034]
[1735172736967,10.97450034,198.8,198.65,10.97450034]
[1735172737168,10.97450034,198.8,198.69,2.5183]
[1735172737369,10.97450034,198.8,198.66,3.14]
[1735172737370,3.14,198.79,198.66,3.14]
[1735172737562,3.14,198.79,198.66,6.2673]
[1735172738769,10.97450034,198.8,198.66,6.2673]
[1735172738965,3.14,198.79,198.66,6.2673]
[1735172739570,2.5176,198.75,198.66,6.2673]
[1735172739971,3.14,198.79,198.66,6.2673]
[1735172740168,2.5174,198.77,198.7,2.5181]
[1735172740468,14.11450034,198.8,198.7,2.5181]
[1735172740667,2.5175,198.76,198.7,2.5181]
[1735172742968,14.11450034,198.8,198.7,2.5181]
[1735172743169,2.5176,198.75,198.7,2.5181]
[1735172743370,14.11450034,198.8,198.7,2.5181]
[1735172743872,2.5174,198.76,198.7,2.5181]
[1735172745073,2.5172,198.79,198.73,2.5178]
[1735172745373,2.5172,198.79,198.71,10.97450034]
[1735172746572,2.5172,198.79,198.73,2.5178]
[1735172747873,10.97450034,198.8,198.66,4.7425]
[1735172748373,2.5179,198.73,198.67,2.5185]
[1735172748579,2.5179,198.73,198.66,4.7425]
[1735172748780,3.14,198.77,198.66,4.7425]
[1735172749080,3.14,198.77,198.68,10.97450034]
[1735172749273,1.5263,198.81,198.68,10.97450034]
[1735172749473,2.5171,198.79,198.68,10.97450034]
[1735172750072,2.5169,198.81,198.71,10.97450034]
[1735172750479,2.5169,198.81,198.72,3.14]
[1735172750876,14.11450034,198.86,198.77,2.5173]
[1735172751472,2.5168,198.81,198.75,2.5174]
[1735172751979,2.5168,198.81,198.73,10.97450034]
[1735172752675,2.5168,198.81,198.76,2.5173]
[1735172752971,2.5167,198.83,198.73,10.97450034]
[1735172753369,14.11450034,198.86,198.76,2.5173]
[1735172753773,2.5167,198.82,198.76,2.5173]
[1735172755276,2.5168,198.81,198.76,2.5173]
[1735172755475,10.97450034,198.83,198.7,14.11450034]
[1735172755674,10.97450034,198.83,198.7,3.14]
[1735172755873,2.5175,198.76,198.7,3.14]
[1735172756083,2.5175,198.76,198.71,2.518]
[1735172756375,2.5183,198.7,198.65,27.20254024]
[1735172757480,2.5183,198.7,198.65,29.72124024]
[1735172757780,2.5183,198.7,198.65,2.5187]
[1735172758472,2.5183,198.7,198.61,14.11450034]
[1735172758473,2.5183,198.7,198.64,2.5189]
[1735172758881,2.5183,198.7,198.61,14.11450034]
[1735172759080,3.14,198.75,198.65,2.5188]
[1735172759281,2.5181,198.71,198.65,2.5188]
[1735172759477,10.97450034,198.79,198.64,10.97450034]
[1735172759679,2.5175,198.76,198.71,2.518]
[1735172760477,2.5175,198.76,198.7,2.5182]
[1735172761182,3.16,198.78,198.64,10.97450034]
[1735172761979,3.16,198.78,198.67,10.97450034]
[1735172762484,5.6773,198.78,198.72,2.5179]
[1735172762681,3.16,198.78,198.72,2.5179]
[1735172762883,2.5175,198.76,198.7,2.5181]
[1735172763181,10.97450034,198.79,198.64,10.97450034]
[1735172763586,3.0984,198.8,198.62,3.16]
[1735172763587,10.97450034,198.76,198.62,3.16]
[1735172763891,3.16,198.75,198.62,3.16]
[1735172764184,2.5183,198.7,198.65,2.5188]
[1735172764683,3.16,198.75,198.62,3.16]
[1735172765584,2.5185,198.68,198.62,3.16]
[1735172766287,3.16,198.75,198.62,3.16]
[1735172766591,2.5183,198.69,198.62,3.16]
[1735172767082,10.97450034,198.79,198.64,10.97450034]
[1735172767386,3.16,198.78,198.64,10.97450034]
[1735172767587,2.5179,198.72,198.67,2.5186]
[1735172767787,3.16,198.77,198.64,10.97450034]
[1735172768586,2.5178,198.74,198.68,2.5184]
[1735172768786,3.0984,198.8,198.67,10.97450034]
[1735172768980,5.6153,198.8,198.7,10.97450034]
[1735172769178,2.5169,198.8,198.7,10.97450034]
[1735172769684,2.5171,198.79,198.74,2.5176]
[1735172769990,1.5481,198.82,198.7,10.97450034]
[1735172770495,1.5481,198.82,198.7,13.49260034]
[1735172770689,12.52260034,198.82,198.69,1.6493]
[1735172770987,10.97450034,198.79,198.68,4.7979]
[1735172771487,10.97450034,198.79,198.68,7.3163]
[1735172772082,10.97450034,198.79,198.68,4.7979]
[1735172772283,10.97450034,198.79,198.68,1.6379]
[1735172773489,2.5176,198.75,198.7,2.5181]
[1735172774189,2.5172,198.78,198.71,2.518]
[1735172774379,3.16,198.8,198.68,12.61240034]
[1735172775291,2.5174,198.77,198.7,2.5182]
[1735172775493,3.16,198.8,198.7,2.5182]
[1735172776587,2.5176,198.76,198.7,2.5182]
[1735172777394,2.5176,198.75,198.7,2.5182]
[1735172777795,2.5176,198.75,198.71,2.5181]
[1735172778294,2.5174,198.77,198.71,2.5181]
[1735172779393,2.5174,198.76,198.71,2.5181]
[1735172779589,3.16,198.8,198.68,12.61240034]
[1735172779793,3.16,198.8,198.7,2.5182]
[1735172781197,2.5175,198.76,198.71,2.518]
[1735172781591,3.16,198.8,198.68,12.61240034]
[1735172781889,2.5173,198.77,198.72,2.5179]
[1735172782085,12.52260034,198.82,198.68,12.61240034]
[1735172782291,2.5172,198.78,198.72,2.5179]
[1735172782491,15.68260034,198.82,198.72,2.5179]
[1735172782898,2.5173,198.78,198.72,2.5179]
[1735172783496,15.68260034,198.82,198.72,2.5179]
[1735172784493,2.5173,198.77,198.72,2.5179]
[1735172787695,2.5173,198.77,198.68,12.61240034]
[1735172787696,2.5173,198.77,198.73,2.5178]
[1735172789499,15.68260034,198.82,198.68,12.61240034]
[1735172789700,15.68260034,198.82,198.68,1.6379]
[1735172789890,2.5172,198.78,198.68,1.6379]
[1735172790095,15.68260034,198.82,198.68,1.6379]
[1735172791301,2.5174,198.77,198.68,1.6379]
[1735172792304,2.5174,198.76,198.71,2.518]
[1735172792491,10.97450034,198.79,198.66,6.91063974]
[1735172792698,10.97450034,198.76,198.66,6.91063974]
[1735172792896,2.5186,198.67,198.66,6.91063974]
[1735172793095,2.5186,198.67,198.66,27.64255897]
[1735172794200,3.12,198.71,198.67,2.5185]
[1735172794604,1.6558,198.72,198.67,2.5185]
[1735172795204,1.6558,198.72,198.61,12.61120034]
[1735172795399,3.12,198.75,198.64,10.97450034]
[1735172795702,5.6377,198.75,198.65,3.12]
[1735172795893,2.5177,198.75,198.65,3.12]
[1735172796500,6.3177,198.78,198.65,3.12]
[1735172796701,10.97450034,198.76,198.65,3.12]
[1735172796897,1.5041,198.75,198.64,6.91063974]
[1735172797502,2.5187,198.67,198.64,6.91063974]
[1735172797906,2.5187,198.67,198.62,2.5192]
[1735172798906,2.5187,198.67,198.63,2.5191]
[1735172799809,3.12,198.72,198.59,10.03063974]
[1735172800008,3.12,198.72,198.61,10.97450034]
[1735172800411,1.5041,198.75,198.64,10.97450034]
[1735172800614,3.12,198.77,198.65,3.12]
[1735172801710,2.5178,198.73,198.68,2.5184]
[1735172802012,2.5186,198.68,198.62,30.16165897]
[1735172802212,10.97450034,198.73,198.63,27.64255897]
[1735172802412,1.5626,198.72,198.63,27.64255897]
[1735172803015,1.5626,198.72,198.62,2.5191]
[1735172803517,2.5185,198.68,198.62,2.5191]
[1735172803819,1.5626,198.72,198.6,27.64255897]
[1735172804113,1.5626,198.72,198.62,10.97450034]
[1735172805219,2.5182,198.7,198.65,2.5187]
[1735172805417,1.5626,198.72,198.62,10.97450034]
[1735172805917,2.5181,198.71,198.65,2.5188]
[1735172806512,2.5181,198.71,198.66,2.5187]
[1735172806712,1.5626,198.72,198.61,27.64255897]
[1735172807218,2.5191,198.64,198.61,27.64255897]
[1735172807516,3.12,198.68,198.6,10.40756307]
[1735172808116,2.5191,198.64,198.6,10.40756307]
[1735172808509,2.5191,198.64,198.56,1.6166]
[1735172808510,10.97450034,198.67,198.55,27.64255897]
[1735172808711,10.97450034,198.67,198.56,2.5199]
[1735172809517,10.97450034,198.67,198.55,27.64255897]
[1735172809720,2.5196,198.6,198.54,13.49460034]
[1735172810115,2.5196,198.6,198.54,2.5201]
[1735172810315,2.5196,198.59,198.51,40.24435931]